Cogmind - Beta 13 @@@ ROGUE MODE // 2024.05.10 @ 22:23:55 Player: youngster Result: Destroyed by G-47 Trooper with Particle Gun Performance ------------- Evolutions (1) 500 Regions Visited (6) 1200 Robots Destroyed (118) 590 Value Destroyed (2566) 2566 Prototype IDs (27) 540 Alien Tech Used (0) 0 Bonus (203) 203 TOTAL SCORE: 5599 Bonus ------- High Alert Combat Kills 93 Follower Combat Kills 110 Cogmind --------- Core Integrity 0/400 Matter 18/300 Energy 100/100 System Corruption 0% Temperature Cool (9) Movement Treading (320) Ox2 Location -8/Mines Parts ------- > --- POWER (1) -------- (None) > --- PROPULSION (2) --- Light Treads > --- UTILITY (4) ------ Improved Heat Sink High-capacity Storage Unit Core Shielding Improved System Guard > --- WEAPON (2) ------- 8R-AWN's Boregun Datajack > --- INVENTORY (20) --- Reinforced Fission Core Light Treads Light Treads Seismic Detector Experimental Targeting Computer Advanced Recalibrator Light Assault Rifle Light Assault Rifle Rocket Launcher Katana Peak State ------------ > --- POWER ------------ Makeshift Power Source > --- PROPULSION ------- Light Treads Light Treads > --- UTILITY ---------- Experimental Heat Sink High-capacity Storage Unit Advanced Weapon Cycler Improved System Guard > --- WEAPON ----------- Assault Rifle 8R-AWN's Boregun > --- INVENTORY -------- Reinforced Fission Core Light Treads Light Treads Light Treads Light Treads High-capacity Matter Pod Seismic Detector Experimental Targeting Computer Advanced Recalibrator EM Pulse Gun Light Assault Rifle Light Assault Rifle Rocket Launcher Datajack [Rating: 43] Favorites ----------- Power Ion Engine Engine Ion Engine Power Core Reinforced Fission Core Propulsion Light Treads Treads Light Treads Utility High-capacity Storage Unit Device Seismic Detector Storage High-capacity Storage Unit Processor Improved System Guard Protection Reactive Plating Weapon Heavy Assault Rifle Energy Gun EM Pulse Gun Energy Cannon Beam Cannon Ballistic Gun Heavy Assault Rifle Ballistic Cannon Improved Light Cannon Launcher Rocket Launcher Slashing Weapon Mining Claw Special Melee Weapon Datajack Build | -11 -10 -10 -9 -9 -9 -8 ------- Run | Yrd Mat Min Mat Min Exi Min Slots Evolved 2 | . . . 2 . . . Power . | . . . . . . . Propulsion . | . . . . . . . Utility 2 | . . . 2 . . . Weapon . | . . . . . . . Parts Attached 144 | 8 32 3 47 19 18 17 Power 8 | 1 1 . 3 . 3 . Engine 6 | 1 1 . 3 . 1 . Core 2 | . . . . . 2 . Reactor . | . . . . . . . Propulsion 28 | 2 6 . 11 2 3 4 Treads 28 | 2 6 . 11 2 3 4 Leg . | . . . . . . . Wheel . | . . . . . . . Hover . | . . . . . . . Flight . | . . . . . . . Utility 52 | 2 14 3 14 9 5 5 Device 29 | 1 9 3 8 4 2 2 Storage 5 | 1 3 . 1 . . . Processor 3 | . 2 . . . . 1 Hackware . | . . . . . . . Protection 15 | . . . 5 5 3 2 Artifact . | . . . . . . . Weapon 56 | 3 11 . 19 8 7 8 Energy Gun 6 | 2 2 . . . 1 1 Energy Cannon 2 | . 2 . . . . . Ballistic Gun 26 | 1 4 . 9 3 4 5 Ballistic Cannon 10 | . 3 . 7 . . . Launcher 8 | . . . 3 3 2 . Special Weapon . | . . . . . . . Impact Weapon . | . . . . . . . Slashing Weapon 1 | . . . . 1 . . Piercing Weapon . | . . . . . . . Special Melee Weapon 3 | . . . . 1 . 2 Unidentified Prototypes . | . . . . . . . Parts Lost 31 | . . . 3 6 9 13 Power 4 | . . . 1 . 2 1 Propulsion 8 | . . . . 1 3 4 Utility 10 | . . . 1 3 2 4 Weapon 9 | . . . 1 2 2 4 Highest Loss Streak 7 | . . . 3 5 7 7 To Critical Strikes 7 | . . . . . 7 . Average Slot Usage (%) 96 | . 99 100 99 99 88 90 Engine 10 | . 14 14 11 11 6 9 Treads 23 | . 27 28 21 21 22 20 Device 12 | . 13 14 18 9 2 17 Storage 11 | . 14 14 11 11 11 11 Protection 13 | . . . 13 22 20 4 Energy Gun 1 | . 7 . . . . . Ballistic Gun 12 | . 5 . 14 18 15 17 Ballistic Cannon 6 | . 10 28 7 . . . Launcher 1 | . . . . 3 1 . Special Melee Weapon 1 | . . . . . 4 . Naked Turns . | . . . . . . . Heaviest Build 86 | 13 34 34 71 78 86 74 Greatest Support 46 | 40 40 40 40 43 46 43 Greatest Overweight (x) 1 | . 1 . 1 1 1 1 Average Overweight (x) . | . . . . 1 1 1 Largest Inventory Capacity 20 | 8 15 15 20 20 20 20 Average Capacity 17 | 7 11 15 19 20 20 20 Most Carried 20 | 3 15 15 20 20 20 20 Average Carried 16 | 2 10 15 19 18 17 13 Final Capacity 20 | 8 15 15 20 20 20 20 Final Carried 20 | 3 15 15 20 20 20 10 Class Distribution -------------------- 70% | Mutant 29% | Scavenger-Mutant Dominant Class ---------------- Mutant | -10/Materials Mutant | -10/Mines Scavenger-Mutant | -9/Materials Scavenger-Mutant | -9/Mines Mutant | -9/Exiles Scavenger-Mutant | -8/Mines Resources | -11 -10 -10 -9 -9 -9 -8 ----------- Run | Yrd Mat Min Mat Min Exi Min Matter Collected 3950 | 117 895 108 1383 385 876 186 Remotely . | . . . . . . . Salvage Created 3653 | 54 1024 83 1395 436 523 138 Parts 265 | 6 66 5 89 27 63 9 Haulers Intercepted 8 | . 2 . 6 . . . Recyclers Shooed 7 | . 1 3 2 . . 1 Parts Field Recycled . | . . . . . . . Retrieved Matter . | . . . . . . . Parts Self-Destructed . | . . . . . . . Prevented . | . . . . . . . Kills | -11 -10 -10 -9 -9 -9 -8 ------- Run | Yrd Mat Min Mat Min Exi Min Combat Hostiles Destroyed 85 | . 21 2 36 21 2 3 Melee 2 | . . . 1 . . 1 Guns 38 | . 4 . 18 13 1 2 Cannons 28 | . 17 2 9 . . . AOE 17 | . . . 8 8 1 . Classes Destroyed 16 | 1 8 . 2 2 2 1 Worker 4 | . 1 . 2 1 . . Builder 3 | . 1 1 . . . 1 Tunneler 3 | 3 . . . . . . Hauler 8 | . 2 . 6 . . . Recycler 5 | . 2 1 2 . . . Mechanic 1 | . . . 1 . . . Operator 3 | . 1 . 2 . . . Turret 1 | . . . . . 1 . Watcher 6 | . 3 . 3 . . . Swarmer 24 | . 5 . 13 6 . . Grunt 40 | . 16 2 14 6 . 2 Brawler 1 | . . . . 1 . . Duelist 1 | . . . . . . 1 Sentry 9 | . . . 9 . . . Zionite 6 | . . . . . 6 . Assembled 9 | . . . . 8 1 . Best Kill Streak 8 | 3 4 3 8 6 3 1 Combat Bots Only 7 | . 3 2 7 6 1 1 Max Kills in Single Turn 3 | 1 2 2 2 3 1 1 Gunslinging . | . . . . . . . Exploded 3 | . . . 2 3 1 . Melee 1 | . . . 1 . . 1 Uniques/NPCs Destroyed 4 | . . . . . 4 . 8R-AWN (-9/Exiles) EX-HEX (-9/Exiles) EX-DEC (-9/Exiles) EX-BIN (-9/Exiles) Combat | -11 -10 -10 -9 -9 -9 -8 -------- Run | Yrd Mat Min Mat Min Exi Min Hostile Shots Fired 687 | . 101 13 158 101 103 211 Missed 148 | . 26 5 42 19 25 31 Damage Taken 5671 | . 764 104 1180 1068 1076 1479 Core 549 | . 105 40 113 42 59 190 Absorbed by Shields 301 | . . . 260 41 . . Redirected to Shielding 8 | . . . . . . 8 Ignored by Resistances 439 | . . . 113 17 309 . Regen/Repaired (Parts) 251 | . . . 251 . . . Core Remaining (%) 71 | 100 . 42 . . . . Volleys Fired 444 | 18 77 11 133 38 118 49 Largest 2 | 2 2 2 2 2 2 2 Hottest 80 | 60 80 78 78 46 63 53 Shots Fired 794 | 34 154 22 256 72 170 86 Gun 568 | 34 75 . 136 68 169 86 Cannon 211 | . 79 22 110 . . . Launcher 15 | . . . 10 4 1 . Special . | . . . . . . . Kinetic 673 | 18 79 22 246 68 157 83 Thermal 61 | 16 45 . . . . . Explosive 15 | . . . 10 4 1 . Electromagnetic 45 | . 30 . . . 12 3 Robot Hit Streak 17 | 4 6 5 17 6 11 15 Robot Miss Streak 5 | 4 5 4 5 3 5 4 Penetration Max 2 | . . . . . 1 2 Secondary Targets 5 | . . . . 5 . . Max Gunslinging Chain 1 | . . . . 1 . . Shots Hit Robots 472 | 20 85 10 150 42 116 49 Core Hits 234 | 5 42 7 70 38 58 14 Critical Kills 6 | . . . . . 5 1 Critical Parts Destroyed 18 | . . . . . 11 7 Critical Strikes 29 | . 2 . 3 . 16 8 Destroy 24 | . . . . . 16 8 Blast 3 | . . . 3 . . . Corrupt 2 | . 2 . . . . . Melee Attacks 7 | . . . . 2 4 1 Impact . | . . . . . . . Slashing 2 | . . . . 2 . . Piercing . | . . . . . . . Sneak Attacks 4 | . . . . . 4 . Combat Hostiles . | . . . . . . . Follow-up Attacks . | . . . . . . . Damage Inflicted 9105 | 174 1511 326 3192 1182 1883 837 Guns 4837 | 174 455 . 1148 594 1746 720 Cannons 2549 | . 936 258 1355 . . . Explosions 1440 | . 102 . 649 554 54 81 Melee . | . . . . . . . Ramming 279 | . 18 68 40 34 83 36 Kinetic 6409 | 61 570 258 2503 594 1739 684 Thermal 837 | 113 643 . . . . 81 Explosive 1257 | . . . 649 554 54 . Electromagnetic 323 | . 280 . . . 7 36 Impact . | . . . . . . . Slashing . | . . . . . . . Piercing . | . . . . . . . Highest Corruption 2 | . . . . . . 2 Average Corruption 1 | . . . . . . 1 Corruption Purged . | . . . . . . . Corruption Blocked . | . . . . . . . Effects 2 | . . . . . . 2 Weapon Failures 2 | . . . . . . 2 Overload Shots . | . . . . . . . Overflow Damage 75 | . 11 . 14 50 . . Projectiles 6 | . . . 6 . . . Explosions 69 | . 11 . 8 50 . . Melee . | . . . . . . . Knockbacks 17 | . 4 6 6 . . 1 Impact 3 | . . 1 1 . . 1 Kinetic 13 | . 4 4 5 . . . Secondary 1 | . . 1 . . . . Self-Inflicted Damage 169 | . . . 46 123 . . Shots 6 | . . . 2 4 . . Rammed 67 | . 6 10 7 7 24 13 Targets Rammed 72 | . 6 11 9 7 25 14 Kicked . | . . . . . . . Crushed 5 | . . 1 2 . 1 1 Highest Temperature 343 | 60 170 135 186 343 282 222 Average Temperature 65 | 24 57 64 34 99 82 106 Received Heat Transfer 1851 | . 327 57 373 707 . 387 Effects 5 | . . . . . 2 3 Energy Bleed 1 | . . . . . 1 . Interference 4 | . . . . . 1 3 Siege Activations . | . . . . . . . Robots Corrupted . | . . . . . . . Combat Hostiles . | . . . . . . . Parts Fried . | . . . . . . . Impact Corruptions . | . . . . . . . Robots Melted . | . . . . . . . Combat Hostiles . | . . . . . . . Parts Melted 2 | . 2 . . . . . Heat Transferred 1597 | 250 1247 . . . . 100 Parts Sabotaged . | . . . . . . . Parts Stolen . | . . . . . . . Parts Stripped . | . . . . . . . Power Chain Reactions 3 | . 3 . . . . . Alert | -11 -10 -10 -9 -9 -9 -8 ------- Run | Yrd Mat Min Mat Min Exi Min Peak Influence 754 | 15 389 177 754 308 . 60 Initial 294 | . 9 114 . 294 . . Average 217 | 5 231 94 275 160 . 18 Maximum Alert Level 3 | . 1 . 3 1 . . Low Security (%) 55 | 100 37 100 45 68 . 100 Level 1 30 | . 62 . 25 31 . . Level 2 12 | . . . 26 . . . Level 3 1 | . . . 2 . . . Level 4 . | . . . . . . . Level 5 . | . . . . . . . High Security . | . . . . . . . Max Security . | . . . . . . . Squads Dispatched 12 | . 5 1 4 1 . 1 Investigation 4 | . 3 . 1 . . . Extermination . | . . . . . . . Reinforcement 6 | . 2 . 2 1 . 1 Assault 2 | . . 1 1 . . . Garrison . | . . . . . . . Intercept . | . . . . . . . Searches Triggered . | . . . . . . . Construction Impeded 2 | . . . . 1 . 1 Haulers Reinforced . | . . . . . . . Active Scanning Responses . | . . . . . . . Cargo Convoy Interrupts . | . . . . . . . Stealth | -11 -10 -10 -9 -9 -9 -8 --------- Run | Yrd Mat Min Mat Min Exi Min Distress Signals 6 | . 2 . 4 . . . Communications Jammed . | . . . . . . . Distress Signals . | . . . . . . . Times Spotted 186 | . 39 11 65 29 36 6 Peak Tracking Total 14 | . 4 4 7 14 9 3 Tactical Retreats 19 | . 5 . 3 1 10 . Traps | -11 -10 -10 -9 -9 -9 -8 ------- Run | Yrd Mat Min Mat Min Exi Min Traps Triggered 3 | . 3 . . . . . Indirectly . | . . . . . . . Trap Hack Attempts . | . . . . . . . Triggered . | . . . . . . . Disarmed . | . . . . . . . Reprogrammed . | . . . . . . . Reused . | . . . . . . . Traps Extracted . | . . . . . . . Installed . | . . . . . . . Triggered . | . . . . . . . Machines | -11 -10 -10 -9 -9 -9 -8 ---------- Run | Yrd Mat Min Mat Min Exi Min Machines Disabled 24 | . 1 . 7 . 15 1 Max in Single Turn 2 | . 1 . 1 . 2 1 Machines Repaired . | . . . . . . . Machines Dismantled . | . . . . . . . Machines Sabotaged . | . . . . . . . Overloaded Fab Kills . | . . . . . . . Hacking | -11 -10 -10 -9 -9 -9 -8 --------- Run | Yrd Mat Min Mat Min Exi Min Machines Accessed 21 | . 9 . 11 . 1 . Terminals 14 | . 6 . 8 . . . Fabricators . | . . . . . . . Repair Stations 3 | . 1 . 2 . . . Recycling Units 3 | . 2 . 1 . . . Scanalyzers . | . . . . . . . Garrison Access . | . . . . . . . Total Hacks 54 | . 20 . 33 . 1 . Successful 31 | . 10 . 20 . 1 . Failed 23 | . 10 . 13 . . . Catastrophic 1 | . . . 1 . . . Database Lockouts . | . . . . . . . Manual 29 | . 17 . 12 . . . Terminals 40 | . 17 . 23 . . . Fabricators . | . . . . . . . Repair Stations 10 | . 1 . 9 . . . Recycling Units 3 | . 2 . 1 . . . Scanalyzers . | . . . . . . . Garrison Access . | . . . . . . . Terminal Hacks 16 | . 8 . 7 . 1 . Record 2 | . . . 1 . 1 . Part Schematic 1 | . 1 . . . . . Robot Schematic 1 | . 1 . . . . . Robot Analysis 2 | . 2 . . . . . Prototype ID Bank 3 | . 3 . . . . . Alert Level 1 | . . . 1 . . . Unreport Threat 1 | . . . 1 . . . Locate Traps 4 | . 1 . 3 . . . Hauler Manifests 1 | . . . 1 . . . Fabricator Hacks . | . . . . . . . Repair Station Hacks 8 | . . . 8 . . . Scan Component 4 | . . . 4 . . . Repair 4 | . . . 4 . . . Recycling Unit Hacks . | . . . . . . . Scanalyzer . | . . . . . . . Garrison Access Hacks . | . . . . . . . Unauthorized Hacks 7 | . 2 . 5 . . . Terminals 4 | . . . 4 . . . Botnet 3 | . . . 3 . . . Operators 1 | . . . 1 . . . Fabricators . | . . . . . . . Repair Stations . | . . . . . . . Recycling Units 3 | . 2 . 1 . . . Tunnel 3 | . 2 . 1 . . . Scanalyzers . | . . . . . . . Garrison Access . | . . . . . . . Data Cores Recovered 1 | . . . 1 . . . Used . | . . . . . . . Hacking Detections 16 | . 7 . 9 . . . Full Trace Events . | . . . . . . . Feedback Events . | . . . . . . . Feedback Blocked . | . . . . . . . Robot Schematics Acquired 1 | . 1 . . . . . Robots Built . | . . . . . . . Authchips . | . . . . . . . Time . | . . . . . . . Total Robot Build Rating . | . . . . . . . Part Schematics Acquired 1 | . 1 . . . . . Parts Built . | . . . . . . . Authchips . | . . . . . . . Time . | . . . . . . . Total Part Build Rating . | . . . . . . . Parts Repaired 4 | . . . 4 . . . Time 116 | . . . 116 . . . Parts Recycled . | . . . . . . . Recycled Matter . | . . . . . . . Retrieved Matter . | . . . . . . . Retrieved Components . | . . . . . . . Parts Scanalyzed . | . . . . . . . Part Schematics Acquired . | . . . . . . . Parts Damaged . | . . . . . . . Bothacking | -11 -10 -10 -9 -9 -9 -8 ------------ Run | Yrd Mat Min Mat Min Exi Min Used RIF Installer . | . . . . . . . Robots Hacked 5 | . . . . . 4 1 Non-combat 3 | . . . . . 3 . Combat 2 | . . . . . 1 1 Robot Hacks Applied 5 | . . . . . 4 1 parse_system 5 | . . . . . 4 1 Relay Couplers Released . | . . . . . . . Fabnet Peak Effective % . | . . . . . . . Robots Rewired . | . . . . . . . Allies Hacked . | . . . . . . . Hacks Repelled . | . . . . . . . Allies | -11 -10 -10 -9 -9 -9 -8 -------- Run | Yrd Mat Min Mat Min Exi Min Total Allies 5 | . . 1 . 4 . . Largest Group 4 | . . 1 1 4 3 . Highest-Rated Group 71 | . . 31 31 71 40 . Highest-Rated Ally 31 | . . 31 31 31 16 . Total Orders 1 | . . . . . 1 . STAY 1 | . . . . . 1 . Ally Attacks 23 | . . 11 3 . 9 . Total Damage 608 | . . 188 44 . 376 . Kills 6 | . . 4 . . 2 . Allies Corrupted . | . . . . . . . Allies Melted . | . . . . . . . Turrets Deployed 1 | . . . . . 1 . Intel | -11 -10 -10 -9 -9 -9 -8 ------- Run | Yrd Mat Min Mat Min Exi Min Robot Analysis Total 2 | . 2 . . . . . Derelict Logs Recovered 2 | . . 1 . 1 . . Drone Launches . | . . . . . . . Drone Recoveries . | . . . . . . . Exploration | -11 -10 -10 -9 -9 -9 -8 ------------- Run | Yrd Mat Min Mat Min Exi Min Turns Passed 12804 | 123 2156 1012 4540 1805 2960 208 Spaces Moved 4977 | 41 1075 571 1568 676 1029 17 Core 4 | 4 . . . . . . Treads 4973 | 37 1075 571 1568 676 1029 17 Legs . | . . . . . . . Wheels . | . . . . . . . Hover . | . . . . . . . Flight . | . . . . . . . Fastest Speed 50 | 50 160 160 160 240 240 240 Average Speed 211 | 149 160 160 236 240 240 240 Slowest Speed 240 | 160 240 160 240 240 240 240 Overloaded Moves . | . . . . . . . Propulsion Burnouts . | . . . . . . . Robots Hopped 1 | . . . . . 1 . Cave-ins Triggered . | . . . . . . . Exploration Rate (%) 70 | 7 99 96 99 99 83 12 Regions Visited 6 Branch Regions 4 Pre-discovered Areas 4 | . 2 . 1 . 1 . Known Exits Taken . | . . . . . . . Unknown Exits Taken 6 | 1 1 1 1 1 1 . Scrap Searched 4 | . . 2 . 2 . . Spaces Dug 38 | . . . 23 10 5 . Terrain Destroyed 177 | . 9 3 87 29 21 28 Melee 1 | . . . . 1 . . Projectile 42 | . 2 3 3 . 14 20 AOE 129 | . 7 . 84 28 5 5 Terrain Rammed . | . . . . . . . Walls Destroyed . | . . . . . . . Machines Disabled . | . . . . . . . Actions | -11 -10 -10 -9 -9 -9 -8 --------- Run | Yrd Mat Min Mat Min Exi Min Total 6396 | 69 1364 642 2137 767 1315 102 Wait 622 | . 132 43 330 21 94 2 Move 4969 | 40 1074 570 1567 675 1026 17 Hop 1 | . . . . . 1 . Pick Up 70 | 3 20 2 23 5 16 1 Fast Attach 27 | 7 10 . 4 . 3 3 Attach 34 | . 2 . 5 6 11 10 Detach 6 | . 3 . . . 3 . Swap 83 | 1 20 3 38 13 4 4 Drop 61 | . 20 2 28 . 10 1 Fire 444 | 18 77 11 133 38 118 49 Melee 7 | . . . . 2 4 1 Ram . | . . . . . . . Kick . | . . . . . . . Crush 72 | . 6 11 9 7 25 14 Escape Stasis . | . . . . . . . Rewire . | . . . . . . . Trap . | . . . . . . . Miscellaneous . | . . . . . . . Route ------- -11/Scrapyard -10/Materials (discovered 5 exits: *Mat x3 / [*Min] / [*Sub]) -10/Mines (discovered 2 exits: *Mat x2) -9/Materials (discovered 4 exits: [*Mat x3] / [*Min]) -9/Mines (discovered 4 exits: [*Mat x2] / *Exi / [*Zio]) -9/Exiles -8/Mines History --------- Turn | Location | Event 7 | -11/Scrapyard | Discovered new exit (range 15) 124 | -11/Scrapyard | Entered Materials 335 | -10/Materials | Build established: Mutant 1158 | -10/Materials | Discovered new exit (range 12) 1429 | -10/Materials | Discovered new exit (range 5) 1646 | -10/Materials | Discovered new exit (range 13) 1899 | -10/Materials | Discovered new exit (range 4) 1972 | -10/Materials | Discovered new exit (range 10) 2280 | -10/Materials | Entered Mines 2310 | -10/Mines | Met a Derelict bent on vengeance 2324 | -10/Mines | Discovered new exit (range 5) 2439 | -10/Mines | Core integrity fell below 50% 2671 | -10/Mines | Met a Derelict testing a Signal Generator 2772 | -10/Mines | Discovered new exit (range 10) 3199 | -10/Mines | Learned Materials stockpile data 3292 | -10/Mines | Entered Materials 3292 | -9/Materials | Accompanied by 1 ally 3292 | -9/Materials | Evolved 2 slots: Utility x2 3494 | -9/Materials | Repaired Lgt. Treads 3904 | -9/Materials | Build established: Scavenger-Mutant 4360 | -9/Materials | Discovered new exit (range 13) 4459 | -9/Materials | Lost 3 parts (1p1u1w) 4668 | -9/Materials | Discovered new exit (range 16) 4752 | -9/Materials | Build established: Mutant 4979 | -9/Materials | Discovered new exit (range 13) 5230 | -9/Materials | Destroyed 7 combat bots 6127 | -9/Materials | Repaired Lgt. Treads 6161 | -9/Materials | Repaired Hvy. Assault Rifle 6194 | -9/Materials | Repaired Hvy. Assault Rifle 6469 | -9/Materials | Discovered new exit (range 4) 6631 | -9/Materials | Build established: Scavenger-Mutant 7692 | -9/Materials | First assault squad dispatched 7832 | -9/Materials | Entered Mines 7833 | -9/Mines | Assembled infested the area 7940 | -9/Mines | Lost 5 parts (1n2u2w) 8339 | -9/Mines | Discovered new exit (range 12) 8447 | -9/Mines | Learned Materials garrison access intel 8770 | -9/Mines | Deemed a non-threat by the Exiles lab entrance 8772 | -9/Mines | Discovered new exit (range 5) 8852 | -9/Mines | Received a Rocket Launcher from a helpful Derelict 9077 | -9/Mines | Assisted by bots powering up and referring to "LRC-V3" 9221 | -9/Mines | Discovered new exit (range 8) 9251 | -9/Mines | A Derelict revealed a hidden shortcut to a safe place 9284 | -9/Mines | Received a Mining Laser from a helpful Derelict 9373 | -9/Mines | Build established: Mutant 9637 | -9/Mines | Entered Exiles 9637 | -9/Exiles | Accompanied by 3 allies 9693 | -9/Exiles | Met 8R-AWN 9740 | -9/Exiles | Met EX-HEX 9808 | -9/Exiles | Met EX-BIN 9894 | -9/Exiles | Learned location of Zion (-7) 9896 | -9/Exiles | Met EX-DEC 10015 | -9/Exiles | Discovered new exit (range 10) 11282 | -9/Exiles | Attacked by the Exiles 11489 | -9/Exiles | Core integrity fell below 50% 11556 | -9/Exiles | Destroyed 8R-AWN 11568 | -9/Exiles | Found 8R-AWN's Boregun 11576 | -9/Exiles | Lost 7 parts (1p2n2u2w) 11581 | -9/Exiles | Found Exp. Targeting Computer 11754 | -9/Exiles | Destroyed EX-HEX 11810 | -9/Exiles | Destroyed EX-DEC 11828 | -9/Exiles | Destroyed EX-BIN 11890 | -9/Exiles | DAS Turret deployed 12597 | -9/Exiles | Entered Mines 12606 | -8/Mines | ME-RLN came to Exiles' defense 12655 | -8/Mines | ME-RLN assimilated allied U-05 Engineer 12679 | -8/Mines | Lost 6 parts (2n2u2w) 12683 | -8/Mines | ME-RLN assimilated allied U-05 Engineer 12701 | -8/Mines | ME-RLN assimilated allied R-06 Scavenger 12745 | -8/Mines | Core integrity fell below 20% 12805 | -8/Mines | Destroyed by G-47 Trooper with Particle Gun Last Messages --------------- 12781_ Adv. Weapon Cycler destroyed. 12782_ K-01 Serf collects debris. 12782_ U-05 Engineer lays Concrete. 12782_ R-06 Scavenger collects Terrain Scan Processor. 12783_ U-05 Engineer lays Concrete. 12786_ K-01 Serf collects debris. 12786_ U-05 Engineer lays Concrete. 12786_ Mak. Power Source destroyed. 12787_ Acquired Core Shielding. 12789_ U-05 Engineer lays Concrete. 12789_ K-01 Serf collects debris. 12790_ U-05 Engineer lays Concrete. 12792_ Critical hit (Burn: +37). 12792_ K-01 Serf collects debris. 12796_ Acquired Katana. 12797_ U-05 Engineer lays Concrete. 12797_ Slammed into K-01 Serf. 12799_ Lgt. Treads destroyed. 12800_ Slammed into G-47 Trooper. Map ----- +----------------------------------------------------+ | ?????????????????????????????????????????????????? | | ?????????????????????????????????????????????????? | | ?????????????????????????????????????????????????? | | ?????????????????????????????????????????????????? | | ?????????????????????????????????????????????????? | | ?????????????????????????????????????????????????? | | ?????????????????????????????????????????????????? | | ?????????????????????????????????????????????????? | | ?????????????????????????????????????????????????? | | ?????????????????????????????????????????????????? | | ?????????????????????????????????????????????????? | | ???????????????????????#####?????????????????????? | | ??????????????????????## ###???????????????????? | | ??????????????????????# ###?????????????????? | | ?????????????????#??### ##????????????????? | | ????????????????##r??## #????????????????? | | ???????????????## #?# #????????????????? | | ???????????????# r ## #?????????????????? | | ???????????? ### != #??????????????????? | | ????????????? !=!|! #???????????????????? | | ?????????????????!%!!! ##???????????????????? | | ????????????????????# #????????????????????? | | ?????????????????????# g #?????????????????????? | | ?????????????????????## [ #?????????????????????? | | ??????????????????????## ##??####???????????????? | | ???????????????????????# @#??## #######?????????? | | ???????????????????????#g=#?## #?????????? | | ???????????????????????# #?# #?????????? | | ???????????????????????# ### ##### #?????????? | | ????????????????????#### ## ##???????????????? | | ????????????????????## |! #????????????????? | | ????????????????????# * ##????????????????? | | ???????????????????# ########?????????????????? | | ??????????????????# ###??##???????????????????? | | ?????????????????# #"#????????????????????????? | | ?????????????????#####"#?????????????????????????? | | ?????????????????????##??????????????????????????? | | ?????????????????????????????????????????????????? | | ?????????????????????????????????????????????????? | | ?????????????????????????????????????????????????? | | ?????????????????????????????????????????????????? | | ?????????????????????????????????????????????????? | | ?????????????????????????????????????????????????? | | ?????????????????????????????????????????????????? | | ?????????????????????????????????????????????????? | | ?????????????????????????????????????????????????? | | ?????????????????????????????????????????????????? | | ?????????????????????????????????????????????????? | | ?????????????????????????????????????????????????? | | ?????????????????????????????????????????????????? | +----------------------------------------------------+ Best States ------------- Heat Dissipation 54 Energy Generation 19 Energy Capacity 310 Matter Stores 300 Matter Capacity 300 Sight Range 16 Terrain Scan Range 14 Terrain Scan Density 10 Corruption Containment 12 Armor Coverage 450 Resistance: KI 20 Core Shielding 20 Weapon Cycling 25 Evasion (%) 40 Recoil Reduction 2 Item Schematics ----------------- Huge Storage Unit | -10/Materials | Hacked Robot Schematics ------------------ M-13 Machinist | -10/Materials | Hacked Fabricated ------------ Nothing Alien Tech Used ----------------- None Achievements -------------- None Challenges ------------ None Game ------ Seed FireHardenedNukerbomber Manual? 0 Play Time 01:00:18 Cumulative 478.1 hours Start 2024.05.10 @ 19:17:01 End 2024.05.10 @ 22:23:55 Sessions 2 Manual Loads 0 Difficulty Rogue Special Mode None Game No. 218 Rogue 218 Adventurer 0 Explorer 0 Win Type - Total 11 Types 8/0/1/1/0/0/0/1/0 Lore% 87 Gallery% 93 Achievement% 71 Wizard Run 0 Options --------- Layout 2 ASCII 0 Keyboard 1 Movement Vi Keybinds 0 Fullscreen 2 Font 32/SmallcapsGlow Map View 50x44 Zoom Use 0% Tactical HUD 1 Map Filters NONE Filters NONE Steam 0 RUN: 568aad57-214a-4034-b773-0e259c5acfac